bitfinex/quotes_SOLUSD_20240829
["timestamp","ask_amount","ask_price","bid_price","bid_amount"]
[1724936918489,12.67809499,145.79,145.72,1.37208973]
[1724936919166,19.53759499,145.79,145.72,1.37208973]
[1724936919365,19.53759499,145.79,145.72,21.37208973]
[1724936920089,19.53759499,145.79,145.72,1.37208973]
[1724936921068,6.8596,145.78,145.72,1.37208973]
[1724936922788,19.53729499,145.79,145.72,1.37208973]
[1724936923272,6.8592,145.79,145.72,1.37208973]
[1724936923479,19.53729499,145.79,145.72,1.37208973]
[1724936924791,6.8598,145.78,145.72,1.37208973]
[1724936926496,6.8603,145.77,145.72,1.37208973]
[1724936926678,12.67809499,145.79,145.72,1.37208973]
[1724936926679,6.8598,145.78,145.72,1.37208973]
[1724936929794,19.53829499,145.77,145.72,1.37208973]
[1724936931486,19.53829499,145.77,145.71,15.1977]
[1724936931685,12.67809499,145.77,145.71,15.1977]
[1724936932080,19.53859499,145.77,145.71,15.1977]
[1724936937095,6.8605,145.77,145.71,15.1977]
[1724936940987,6.8582,145.81,145.73,15.3095]
[1724936941192,6.8581,145.82,145.74,45.12549]
[1724936941404,19.53619499,145.82,145.74,45.12549]
[1724936946108,22.6936,145.87,145.74,45.12549]
[1724936946311,6.8571,145.84,145.77,6.4041]
[1724936946815,6.8571,145.84,145.78,0.75079339]
[1724936946997,2.74567263,145.9,145.79,0.74901403]
[1724936947201,12.67809499,145.87,145.8,0.74901317]
[1724936947401,6.8553,145.88,145.8,0.74901317]
[1724936947609,6.8553,145.88,145.81,15.6525]
[1724936947810,6.8553,145.88,145.82,0.74911867]
[1724936948100,19.53349499,145.87,145.81,15.6525]
[1724936948303,12.67809499,145.87,145.81,15.6525]
[1724936950096,6.8551,145.88,145.82,6.5143]
[1724936950814,6.854,145.9,145.82,6.5143]
[1724936951244,6.854,145.9,145.83,0.93105596]
[1724936952032,19.53169499,145.91,145.83,0.93105596]
[1724936952334,19.53129499,145.92,145.84,17.37976264]
[1724936952517,7.50110234,145.93,145.84,17.37976264]
[1724936952698,17.1274,145.97,145.84,17.37976264]
[1724936952699,12.67809499,145.94,145.86,21.3658]
[1724936952902,12.67809499,145.94,145.87,1.3707296]
[1724936953220,19.53029499,145.94,145.87,1.3707296]
[1724936953420,19.53029499,145.94,145.86,21.3658]
[1724936958137,17.1274,145.97,145.86,21.3658]
[1724936958138,12.67809499,145.92,145.86,21.3658]
[1724936959229,19.53119499,145.92,145.86,21.3658]
[1724936961104,12.67809499,145.92,145.86,21.3658]
[1724936961313,6.8526,145.93,145.86,21.3658]
[1724936961610,19.53029499,145.94,145.86,21.3658]
[1724936964018,6.8526,145.93,145.86,21.3658]
[1724936972431,253.2,145.98,145.87,12.67809499]
[1724936972637,253.2,145.98,145.89,12.67809499]
[1724936972638,265.87809499,145.98,145.89,12.67809499]
[1724936972838,6.8512,145.96,145.89,12.67809499]
[1724936975356,6.8512,145.96,145.88,61.4165]
[1724936975560,6.8512,145.96,145.89,20.0]
[1724936976256,6.8508,145.97,145.89,20.0]
[1724936976457,12.80358499,145.98,145.89,32.67809499]
[1724936976646,0.25098,145.97,145.89,32.67809499]
[1724936977257,7.10178,145.97,145.89,32.67809499]
[1724936978189,12.67809499,145.96,145.89,20.0]
[1724936978344,6.8527,145.93,145.88,16.4165]
[1724936978647,6.8522,145.94,145.88,16.4165]
[1724936978844,19.53029499,145.94,145.88,16.4165]
[1724936980042,6.8526,145.93,145.88,16.4165]
[1724936980246,12.67809499,145.9,145.88,16.4165]
[1724936980448,19.53249499,145.9,145.88,16.4165]
[1724936981567,6.8544,145.89,145.86,6.3502]
[1724936981863,6.8544,145.89,145.84,15.3293]
[1724936984051,12.67809499,145.86,145.84,15.3293]
[1724936984251,6.856,145.86,145.8,15.7901]
[1724936984562,19.53359499,145.87,145.8,15.7901]
[1724936984753,0.12549,145.86,145.8,15.7901]
[1724936986463,6.98159,145.86,145.8,15.7901]
[1724936986863,0.12549,145.88,145.8,15.7901]
[1724936987360,45.25098,145.88,145.8,15.7901]
[1724936988240,19.53349499,145.87,145.8,15.7901]
[1724936989540,12.67809499,145.87,145.8,15.7901]
[1724936990055,52.10598,145.88,145.8,15.7901]
[1724936990357,12.80358499,145.88,145.8,15.7901]
[1724936990562,12.67809499,145.88,145.8,15.7901]
[1724936991045,19.53299499,145.88,145.8,15.7901]
[1724936992459,6.8549,145.88,145.8,15.7901]
[1724936992758,12.67809499,145.89,145.81,45.12549]
[1724936992943,12.67809499,145.89,145.82,15.004]
[1724936994344,19.53259499,145.89,145.82,15.004]
[1724936994546,12.67809499,145.87,145.82,15.004]
[1724936995044,19.53349499,145.87,145.82,15.004]
[1724936997168,12.67809499,145.85,145.82,15.004]
[1724936999763,19.53449499,145.85,145.82,15.004]
[1724937000470,0.12549,145.86,145.79,6.0973]
[1724937000471,12.67809499,145.83,145.79,6.0973]
[1724937003179,19.53539499,145.83,145.78,15.942]
[1724937003377,12.67809499,145.83,145.78,15.942]
[1724937003577,12.67809499,145.87,145.78,15.942]
[1724937003873,12.67809499,145.87,145.81,15.2145]
[1724937006159,19.53369499,145.87,145.81,15.2145]
[1724937006596,12.67809499,145.87,145.81,15.2145]
[1724937009189,1.19516803,145.94,145.82,6.1667]
[1724937009392,6.8529,145.93,145.83,49.00777499]
[1724937009567,19.53099499,145.93,145.84,45.0]
[1724937009889,19.53099499,145.93,145.85,36.0787]
[1724937010088,12.67809499,145.93,145.85,36.0787]
[1724937010292,12.67809499,145.93,145.87,6.1667]
[1724937010665,12.67809499,145.93,145.88,0.74203192]
[1724937010870,12.67809499,145.95,145.88,0.74203192]
[1724937011104,12.67809499,145.95,145.89,15.0787]
[1724937011691,12.67809499,145.93,145.89,15.0787]
[1724937013708,6.8515,145.96,145.89,15.0787]
[1724937013709,12.67809499,145.96,145.89,15.0787]
[1724937014675,6.8498,145.99,145.89,15.0787]
[1724937014878,12.67809499,145.97,145.89,15.0787]
[1724937020687,6.8497,146.0,145.91,6.5354]
[1724937020886,6.8497,146.0,145.92,15.4759]
[1724937021098,12.67809499,145.99,145.92,15.4759]
[1724937021599,12.67809499,145.99,145.93,1.37026856]
[1724937021806,12.67809499,146.01,145.93,21.37026856]
[1724937023260,12.67809499,146.01,145.92,15.4759]
[1724937023261,12.67809499,145.96,145.92,16.84601928]
[1724937023389,12.67809499,145.94,145.92,15.4759]
[1724937026393,6.8526,145.93,145.88,15.9205]
[1724937026688,12.67809499,145.89,145.88,15.9205]
[1724937027997,38.52067425,145.9,145.88,15.9205]
[1724937030519,6.8544,145.89,145.84,21.7791]
[1724937030703,38.52077425,145.9,145.84,21.7791]
[1724937031633,31.66667425,145.88,145.84,21.7791]
[1724937032126,38.52167425,145.88,145.84,21.7791]
[1724937033600,81.66667425,145.95,145.84,21.7791]
[1724937033601,17.1277,145.97,145.84,21.7791]
[1724937033795,17.1277,145.97,145.85,45.70092688]
[1724937033796,6.8517,145.95,145.85,45.70092688]
[1724937034000,6.8521,145.94,145.86,1.37078679]
[1724937034932,6.8517,145.95,145.86,1.37078679]
[1724937035631,6.8522,145.94,145.85,65.12549]
[1724937035813,6.8522,145.94,145.85,20.0]
[1724937036833,6.8526,145.93,145.85,20.0]
[1724937037725,38.51887425,145.94,145.85,20.0]
[1724937041522,38.51887425,145.94,145.86,0.69800865]
[1724937042534,38.51887425,145.94,145.85,20.0]
[1724937042741,38.51887425,145.94,145.87,0.69748161]
[1724937043126,38.51887425,145.94,145.85,20.0]
[1724937044111,38.51887425,145.94,145.86,1.1376544]
[1724937045050,31.66667425,145.96,145.87,15.4899]
[1724937045220,6.8517,145.95,145.87,15.4899]
[1724937049452,38.51797425,145.96,145.87,15.4899]
[1724937049636,0.12549,145.95,145.87,15.4899]
[1724937050749,6.97709,145.95,145.87,15.4899]
[1724937054124,12.65665393,145.94,145.87,15.4899]
[1724937058053,19.50875393,145.94,145.87,15.4899]
[1724937059151,12.65665393,145.94,145.87,15.4899]
[1724937061549,12.65665393,145.94,145.88,6.432]
[1724937061858,19.50805393,145.96,145.88,6.432]
[1724937063255,12.65665393,145.94,145.88,6.432]
[1724937067558,6.8511,145.97,145.88,6.432]
[1724937067757,12.65665393,145.95,145.89,15.6184]
[1724937069464,12.65665393,145.97,145.89,15.6184]
[1724937069955,12.65665393,145.97,145.9,20.0]
[1724937070957,6.8499,145.99,145.9,20.0]
[1724937071262,12.65665393,145.98,145.9,20.0]
[1724937072659,12.65665393,145.98,145.91,16.0509]
[1724937076744,6.8489,146.01,145.92,6.3007]
[1724937076951,12.65665393,145.99,145.93,20.0]
[1724937077640,12.65665393,145.99,145.94,15.1514]
[1724937082749,12.65665393,145.97,145.94,15.1514]
[1724937088171,12.65665393,145.99,145.94,15.1514]
[1724937088858,7.10048,146.0,145.94,15.1514]
[1724937088859,0.25098,146.0,145.94,15.1514]
[1724937089171,12.65665393,145.99,145.94,15.1514]
[1724937089870,12.65665393,145.97,145.94,15.1514]
[1724937110697,7.10038,146.0,145.94,15.1514]
[1724937110875,12.65665393,145.98,145.94,15.1514]
[1724937112815,0.25098,146.0,145.94,15.1514]
[1724937113103,12.90763393,146.0,145.94,15.1514]
[1724937114881,19.75693393,146.0,145.94,15.1514]
[1724937118886,12.90763393,146.0,145.94,15.1514]
[1724937124405,12.65665393,145.99,145.94,15.1514]
[1724937124789,0.25098,146.0,145.94,15.1514]
[1724937125108,57.50110234,146.04,145.97,15.3228]
[1724937125109,3.58379695,146.04,145.97,15.3228]
[1724937125304,16.24045088,146.05,145.97,16.1987151]
[1724937125910,16.24045088,146.05,145.97,28.85536903]
[1724937126092,12.65665393,146.05,145.97,28.85536903]
[1724937126293,12.65665393,146.05,145.98,20.0]
[1724937128004,6.8466,146.06,145.98,20.0]
[1724937128203,12.65665393,146.06,145.99,0.8757951]
[1724937129001,12.65665393,146.06,145.99,1.36971275]
[1724937129312,3.58379695,146.08,146.01,6.2801]
[1724937129506,0.25098,146.07,146.01,6.2801]
[1724937129709,12.65665393,146.08,146.01,7.64976188]
[1724937130211,12.65665393,146.08,146.02,1.36943423]
[1724937130813,6.8443,146.11,146.03,15.3846]
[1724937131015,12.65665393,146.09,146.03,15.3846]
[1724937133401,12.65665393,146.07,146.03,15.3846]
[1724937139017,12.65665393,146.09,146.03,15.3846]
[1724937141319,12.65665393,146.11,146.04,20.0]
[1724937141528,12.65665393,146.11,146.05,0.37531273]
[1724937142417,19.50095393,146.11,146.05,0.37531273]
[1724937143027,6.8434,146.13,146.06,22.9495]
[1724937143206,19.50005393,146.13,146.07,20.37561545]
[1724937143403,12.65665393,146.13,146.07,20.37561545]
[1724937143607,12.65665393,146.13,146.08,0.37558973]
[1724937143826,12.65665393,146.13,146.07,21.36895972]
[1724937144716,12.65665393,146.13,146.08,1.368866]
[1724937144912,12.65665393,146.13,146.07,20.0]
[1724937147533,269.5547,146.18,146.07,20.0]
[1724937147714,12.65665393,146.14,146.07,20.0]
[1724937148032,0.12549,146.13,146.07,20.0]
[1724937150434,12.65665393,146.12,146.06,22.9495]
[1724937150727,12.65665393,146.1,146.06,22.9495]
[1724937152333,6.8424,146.15,146.07,15.7196]
[1724937152525,19.49935393,146.14,146.07,15.7196]
[1724937153319,12.65665393,146.14,146.07,15.7196]
[1724937153632,6.8424,146.15,146.07,15.7196]
[1724937153830,12.65665393,146.14,146.08,20.0]
[1724937154214,12.65665393,146.14,146.08,21.36890142]
[1724937154833,12.65665393,146.14,146.08,20.0]
[1724937155137,12.65665393,146.14,146.09,1.36768328]
[1724937156135,6.8419,146.16,146.09,1.36768328]
[1724937156428,12.65665393,146.15,146.09,1.36768328]
[1724937157022,12.65665393,146.15,146.08,20.0]
[1724937158359,19.49895393,146.15,146.08,20.0]
[1724937158540,12.65665393,146.13,146.08,20.0]
[1724937160938,6.842,146.16,146.08,20.0]
[1724937161238,12.65665393,146.14,146.09,20.0]
[1724937161838,12.65665393,146.14,146.08,20.0]
[1724937162634,0.12549,146.15,146.09,22.6746]
[1724937162842,12.78214393,146.15,146.09,22.6746]
[1724937165544,12.78214393,146.15,146.09,23.0260848]
[1724937166720,12.78214393,146.15,146.09,23.47943793]
[1724937166916,12.65665393,146.15,146.09,22.6746]
[1724937167442,12.65665393,146.15,146.1,1.36756812]
[1724937168244,12.65665393,146.15,146.09,22.6746]
[1724937169733,6.8453,146.09,146.05,15.3797]
[1724937169943,12.65665393,146.07,146.05,15.3797]
[1724937170954,19.50265393,146.07,146.05,15.3797]
[1724937171544,12.65665393,146.07,146.05,15.3797]
[1724937171921,6.8457,146.08,146.05,15.3797]
[1724937172148,12.65665393,146.07,146.05,15.3797]
[1724937172822,17.1083,146.13,146.05,15.3797]
[1724937173031,12.65665393,146.09,146.05,15.3797]
[1724937173834,12.65665393,146.11,146.05,15.3797]
[1724937174142,12.65665393,146.11,146.06,6.299]
[1724937174531,12.65665393,146.11,146.06,7.36718227]
[1724937174740,6.8432,146.13,146.06,7.36718227]
[1724937174929,12.65665393,146.1,146.06,6.299]
[1724937177437,12.65665393,146.08,146.06,6.299]
[1724937180141,12.65665393,146.08,146.05,15.3797]
[1724937182961,6.96969,146.11,146.05,15.3797]
[1724937183161,12.65665393,146.09,146.05,15.3797]
[1724937183830,19.50185393,146.09,146.05,15.3797]
[1724937184035,12.65665393,146.07,146.05,15.3797]
[1724937185230,6.8465,146.06,146.05,15.3797]
[1724937185430,0.12549,146.06,146.02,6.2684]
[1724937185644,12.65665393,146.05,146.02,6.2684]
[1724937188632,12.65665393,146.05,146.01,15.6699]
[1724937194335,12.65665393,146.03,146.01,15.6699]
[1724937194962,12.65665393,146.03,145.97,22.35454681]
[1724937195562,12.65665393,146.03,145.97,16.4657]
[1724937196458,12.65665393,146.03,145.98,20.0]
[1724937199641,0.12549,146.08,145.98,20.0]
[1724937199835,0.12549,146.07,145.98,20.0]
[1724937200039,12.65665393,146.04,145.98,20.0]
[1724937200439,0.12549,146.07,145.98,20.0]
[1724937200639,12.65665393,146.04,145.98,20.0]
[1724937201449,12.65665393,146.04,145.98,25.8895584]
[1724937202154,12.65665393,146.04,145.98,20.0]
[1724937204961,12.65665393,146.04,145.98,25.88959936]
[1724937205373,12.65665393,146.04,145.98,20.0]
[1724937208949,12.65665393,146.05,145.98,20.0]
[1724937210157,12.65665393,146.05,145.98,25.88959936]
[1724937210650,22.5583,146.12,145.99,28.95905393]
[1724937210850,12.65665393,146.09,146.01,6.18]
[1724937211250,12.65665393,146.07,146.01,6.18]
[1724937212172,12.65665393,146.07,146.01,12.06878482]
[1724937212358,12.65665393,146.07,146.01,17.95756964]
[1724937213582,12.65665393,146.05,146.01,17.95756964]
[1724937214858,12.65665393,146.07,146.01,17.95756964]
[1724937215378,12.65665393,146.07,146.02,25.88848429]
[1724937215754,12.65665393,146.07,146.03,5.88848429]
[1724937217580,12.65665393,146.09,146.03,5.88848429]
[1724937217968,12.65665393,146.09,146.04,16.2702]
[1724937220991,260.0426,146.15,146.05,20.0]
[1724937221289,12.65665393,146.11,146.05,20.0]
[1724937221892,12.65665393,146.11,146.04,22.15870772]
[1724937222078,12.65665393,146.11,146.05,20.0]
[1724937222671,12.65665393,146.11,146.05,25.88850772]
[1724937223884,12.65665393,146.11,146.05,20.0]
[1724937224261,12.65665393,146.11,146.05,21.36913369]
[1724937224693,12.65665393,146.11,146.05,27.25764141]
[1724937225918,12.65665393,146.11,146.05,25.88850772]
[1724937226077,12.65665393,146.11,146.05,20.0]
[1724937226998,12.65665393,146.11,146.05,25.88796725]
[1724937227893,12.65665393,146.11,146.05,20.0]
[1724937228199,12.65665393,146.11,146.05,25.88796725]
[1724937229677,12.65665393,146.11,146.05,20.0]
[1724937229883,12.65665393,146.11,146.05,25.88703938]
[1724937230205,12.65665393,146.11,146.05,20.0]
[1724937231872,12.65665393,146.09,146.04,16.2702]
[1724937232094,12.65665393,146.07,146.04,16.2702]
[1724937232292,12.65665393,146.05,146.04,16.2702]
[1724937232495,12.65665393,146.05,146.01,6.18]
[1724937233208,12.65665393,146.07,146.01,6.18]
[1724937233883,12.65665393,146.07,146.02,20.0]
[1724937234392,0.12549,146.06,146.02,20.0]
[1724937235309,0.12549,146.06,146.01,6.18]
[1724937235612,0.12549,146.06,146.02,23.19204276]
[1724937235823,12.65665393,146.05,146.03,3.19204276]
[1724937235984,12.65665393,146.05,146.02,23.19204276]
[1724937241212,12.65665393,146.05,146.03,3.19204276]
[1724937241714,12.65665393,146.05,146.02,20.0]
[1724937243090,12.65665393,146.05,146.0,16.1722]
[1724937245326,12.65665393,146.03,146.0,16.1722]
[1724937245827,12.65665393,146.03,145.97,6.1051]
[1724937246894,12.65665393,146.03,145.98,20.0]
[1724937247301,0.12549,146.02,145.96,15.5895]
[1724937247501,12.65665393,146.01,145.96,15.5895]
[1724937248126,0.12549,146.02,145.96,15.5895]
[1724937248459,0.12549,146.04,145.96,15.5895]
[1724937248634,0.25098,146.04,145.97,20.0]
[1724937249313,12.65665393,146.03,145.97,20.0]
[1724937250406,6.8471,146.05,145.97,20.0]
[1724937250407,12.65665393,146.05,145.97,20.0]
[1724937251723,0.25098,146.04,145.97,20.0]
[1724937252827,0.25098,146.04,145.97,20.54379432]
[1724937253003,12.65665393,146.04,145.97,20.54379432]
[1724937254227,12.65665393,146.04,145.97,21.36989619]
[1724937254529,12.65665393,146.04,145.97,20.0]
[1724937254824,12.65665393,146.02,145.97,20.0]
[1724937258430,12.65665393,146.04,145.97,20.0]
[1724937258810,12.65665393,146.04,145.97,21.36451442]
[1724937260211,12.65665393,146.04,145.97,20.0]
[1724937264535,19.50405393,146.04,145.97,20.0]
[1724937264742,12.65665393,146.04,145.97,20.0]
[1724937266032,12.65665393,146.02,145.96,15.5895]
[1724937266331,12.65665393,146.02,145.97,20.0]
[1724937275051,12.65665393,146.04,145.97,20.0]
[1724937276445,12.65665393,146.04,145.98,0.4921412]
[1724937279025,12.65665393,146.04,145.98,1.18288261]
[1724937279831,12.65665393,146.04,145.97,20.0]
[1724937283727,0.25098,146.05,145.97,32.65665393]
[1724937284057,12.65665393,146.06,145.97,32.65665393]
[1724937284227,12.65665393,146.08,145.99,21.1811]
[1724937284427,12.65665393,146.08,146.0,20.0]
[1724937285739,12.65665393,146.08,146.01,45.0]
[1724937285976,12.65665393,146.08,146.02,20.0]
[1724937287246,12.65665393,146.1,146.02,20.0]
[1724937291067,12.65665393,146.1,146.03,16.4592]
[1724937292060,12.65665393,146.13,146.04,6.2719]
[1724937292357,12.65665393,146.13,146.05,65.0]
[1724937292569,12.65665393,146.13,146.06,5.88690395]
[1724937292735,12.65665393,146.13,146.07,15.9975]
[1724937297343,12.65665393,146.11,146.07,15.9975]
[1724937300259,0.12549,146.1,146.07,15.9975]
[1724937300467,0.25098,146.1,146.07,15.9975]
[1724937301051,12.65665393,146.09,146.07,15.9975]
[1724937304954,12.65665393,146.09,146.04,6.2719]
[1724937305358,12.65665393,146.07,146.03,15.7176]
[1724937305748,19.50285393,146.07,146.03,15.7176]
[1724937307455,12.65665393,146.07,146.03,15.7176]
[1724937307771,0.25098,146.08,146.03,15.7176]
[1724937307970,45.25098,146.08,146.03,15.7176]
[1724937308147,52.09658,146.08,146.03,15.7176]
[1724937308782,6.846,146.07,146.03,15.7176]
[1724937309075,12.65665393,146.06,146.03,15.7176]
[1724937309250,12.65665393,146.04,146.03,15.7176]
[1724937309456,12.65665393,146.04,146.0,21.6092]
[1724937311479,12.65665393,146.04,146.0,15.1011]
[1724937312854,50.62661572,146.09,146.0,15.1011]
[1724937313163,12.65665393,146.06,146.0,15.1011]
[1724937315774,12.65665393,146.04,146.0,15.1011]
[1724937316577,0.12549,146.05,146.0,15.1011]
[1724937317563,12.65665393,146.06,146.0,15.1011]
[1724937320283,0.12549,146.05,146.0,15.1011]
[1724937320481,12.65665393,146.04,146.0,15.1011]
[1724937321790,0.12549,146.05,146.0,15.1011]
[1724937323686,12.65665393,146.06,146.0,15.1011]
[1724937326482,19.50335393,146.06,146.0,15.1011]
[1724937326986,12.65665393,146.02,145.96,16.0852]
[1724937327162,12.65665393,145.99,145.96,16.0852]
[1724937327957,6.8493,146.0,145.96,16.0852]
[1724937328160,0.12549,145.99,145.96,16.0852]
[1724937329163,45.25098,146.0,145.96,16.0852]
[1724937332995,52.10028,146.0,145.96,16.0852]
[1724937334186,12.65665393,145.99,145.96,16.0852]
[1724937339406,19.50655393,145.99,145.96,16.0852]
[1724937339606,6.8504,145.98,145.89,12.65665393]
[1724937339913,12.78214393,145.97,145.92,15.2301]
[1724937341709,19.63304393,145.97,145.92,15.2301]
[1724937342391,0.12549,145.96,145.92,15.2301]
[1724937343894,12.65665393,145.95,145.92,15.2301]
[1724937350924,0.12549,145.96,145.92,15.2301]
[1724937351099,45.0,145.96,145.92,15.2301]
[1724937354320,12.90763393,145.97,145.92,15.2301]
[1724937356821,117.74791572,146.02,145.92,15.2301]
[1724937356994,19.50625393,146.0,145.92,16.44518566]
[1724937358304,45.25098,145.99,145.92,16.44518566]
[1724937361927,21.993,146.03,145.93,1.2393473]
[1724937362121,12.65665393,146.01,145.93,21.2393473]
[1724937362702,12.65665393,146.01,145.95,6.6125]
[1724937363032,12.65665393,146.01,145.96,1.23910906]
[1724937363203,12.65665393,146.03,145.96,1.23910906]
[1724937363399,22.3242,146.07,145.97,15.0601]
[1724937363400,12.65665393,146.05,145.97,15.0601]
[1724937363599,12.65665393,146.05,145.98,1.23893929]
[1724937364808,12.65665393,146.05,145.99,1.23961088]
[1724937366237,6.8452,146.09,146.0,24.20812597]
[1724937366523,12.65665393,146.08,146.0,22.9686]
[1724937367820,12.65665393,146.06,146.0,22.9686]
[1724937369235,12.65665393,146.08,146.01,0.95941076]
[1724937369532,0.12549,146.07,146.01,0.95941076]
[1724937369709,0.12549,146.07,146.0,22.9686]
[1724937369911,12.65665393,146.08,146.01,0.95855654]
[1724937370110,12.65665393,146.08,146.0,22.9686]
[1724937371008,19.50225393,146.08,146.0,22.9686]
[1724937372610,12.65665393,146.06,146.0,22.9686]
[1724937378139,19.50315393,146.06,146.0,22.9686]
[1724937378438,12.65665393,146.04,146.0,22.9686]
[1724937380738,12.65665393,146.06,146.0,22.9686]
[1724937380922,6.8455,146.09,146.0,22.9686]
[1724937381123,19.50215393,146.09,146.0,22.9686]
[1724937381323,19.50215393,146.09,146.01,20.0]
[1724937382253,0.12549,146.08,146.01,20.0]
[1724937382437,12.65665393,146.07,146.01,20.0]
[1724937385148,0.25098,146.06,146.01,20.0]
[1724937385739,12.65665393,146.07,146.01,20.0]
[1724937390860,12.65665393,146.07,146.01,21.36953636]
[1724937391040,12.65665393,146.07,146.01,20.0]
[1724937393060,6.97119,146.08,146.01,20.0]
[1724937393258,0.25098,146.07,146.01,20.0]
[1724937393763,0.25098,146.07,146.02,16.0115]
[1724937393941,12.78214393,146.07,146.02,16.0115]
[1724937394447,19.62844393,146.07,146.02,16.0115]
[1724937395458,12.78214393,146.07,146.02,16.0115]
[1724937403767,12.65665393,146.07,146.02,16.0115]
[1724937411473,12.65665393,146.08,146.02,16.0115]
[1724937411648,12.65665393,146.08,146.03,3.19256242]
[1724937411848,12.65665393,146.08,146.02,21.90175152]
[1724937412050,6.8446,146.1,146.03,3.1923394]
[1724937412378,12.65665393,146.11,146.06,15.6376]
[1724937413671,12.65665393,146.11,146.07,1.34487183]
[1724937414071,6.4159,146.18,146.08,1.34506126]
[1724937414243,12.65665393,146.15,146.09,15.1615]
[1724937415571,12.65665393,146.13,146.09,15.1615]
[1724937415956,12.65665393,146.11,146.09,15.1615]
[1724937418982,12.65665393,146.12,146.09,15.1615]
[1724937421363,6.8443,146.11,146.09,15.1615]
[1724937421671,12.65665393,146.1,146.09,15.1615]
[1724937421872,6.96949,146.12,146.09,15.1615]
[1724937421873,12.65665393,146.11,146.09,15.1615]
[1724937423576,19.50095393,146.11,146.09,15.1615]
[1724937423775,6.97029,146.1,146.06,15.5824]
[1724937424079,12.65665393,146.08,146.06,15.5824]
[1724937425683,19.50225393,146.08,146.06,15.5824]
[1724937425893,6.846,146.07,146.02,21.6645]
[1724937426183,12.65665393,146.05,146.02,21.6645]
[1724937426770,0.12549,146.08,146.02,21.6645]
[1724937426771,6.8456,146.08,146.02,21.6645]
[1724937427163,12.65665393,146.09,146.02,21.6645]
[1724937427363,0.12549,146.08,146.02,21.6645]
[1724937428175,19.50205393,146.09,146.02,21.6645]
[1724937428485,12.65665393,146.09,146.02,21.6645]
[1724937431379,19.50185393,146.09,146.02,21.6645]
[1724937434469,6.8447,146.1,146.02,21.6645]
[1724937434663,12.65665393,146.09,146.03,20.0]
[1724937435364,12.65665393,146.09,146.04,1.10354187]
[1724937436688,19.50175393,146.09,146.03,20.0]
[1724937438780,19.50175393,146.09,146.02,21.6645]
[1724937438979,19.50175393,146.09,146.03,20.0]
[1724937439181,12.65665393,146.09,146.03,20.0]
[1724937439987,19.50175393,146.09,146.03,20.0]
[1724937441893,6.8455,146.08,146.03,20.0]
[1724937442197,19.50185393,146.09,146.03,20.47425528]
[1724937442576,19.50185393,146.09,146.03,20.0]
[1724937443697,19.50185393,146.09,146.03,21.36935618]
[1724937444196,19.50185393,146.09,146.03,20.0]
[1724937448512,253.2,146.16,146.07,16.5758]
[1724937448681,19.49815393,146.17,146.08,20.0]
[1724937449075,12.65665393,146.15,146.08,20.0]
[1724937450199,6.8419,146.16,146.08,20.0]
[1724937450200,12.65665393,146.11,146.08,20.0]
[1724937450501,12.65665393,146.09,146.07,16.5758]
[1724937452605,12.65665393,146.11,146.07,16.5758]
[1724937453502,12.65665393,146.13,146.07,16.5758]
[1724937453677,6.8419,146.16,146.07,16.5758]
[1724937453883,12.65665393,146.15,146.08,20.0]
[1724937454704,12.65665393,146.17,146.09,6.1599]
[1724937454886,12.65665393,146.17,146.1,20.0]
[1724937455996,19.49805393,146.17,146.1,20.0]
[1724937456711,12.65665393,146.15,146.09,6.1599]
[1724937459411,12.65665393,146.13,146.09,6.1599]
[1724937460399,12.65665393,146.13,146.07,16.5758]
[1724937460603,6.96839,146.14,146.07,16.5758]
[1724937460604,12.65665393,146.11,146.07,16.5758]
[1724937461110,12.65665393,146.09,146.07,16.5758]
[1724937471009,0.25098,146.08,146.0,22.4562]
[1724937471315,0.25098,146.08,146.01,20.0]
[1724937473710,12.65665393,146.07,146.01,20.0]
[1724937474021,12.65665393,146.05,146.01,20.0]
[1724937475801,12.65665393,146.07,146.01,20.0]
[1724937476129,0.25098,146.06,146.01,20.0]
[1724937476304,12.65665393,146.07,146.01,20.0]
[1724937481319,12.65665393,146.03,146.0,22.4562]